[Event "4th Memorial Warakomska-A 2020"]
[Site "Suwalki"]
[Date "2020.08.07"]
[Round "2.9"]
[White "Mulet, Piotr"]
[Black "Szustakowski, Antoni"]
[Result "1-0"]
[ECO "B90"]
[WhiteElo "2217"]
[BlackElo "2295"]
[Annotator "ChessBase"]
[PlyCount "113"]
[EventDate "2020.08.06"]
[EventType "swiss"]
[EventCountry "POL"]
[SourceTitle "playchess.com"]
[Source "ChessBase"]
[SourceQuality "1"]
[TimeControl "40/5400+30:1800+30"]

1. e4 {[%emt 0:00:00]} c5 {[%emt 0:00:00]} 2. Nf3 {[%emt 0:00:00]} d6 {[%emt 0:00:00]} 3. d4 {[%emt 0:00:00]} cxd4 {[%emt 0:00:00]} 4. Nxd4 {[%emt 0:00:00]} Nf6 {[%emt 0:00:00]} 5. Nc3 {[%emt 0:00:01]} a6 {[%emt 0:00:00]} 6. Bc4 {[%emt 0:00:43]} e6 {[%emt 0:00:10]} 7. Qe2 {[%emt 0:07:08]} b5 {[%emt 0:02:42]} 8. Bb3 {[%emt 0:00:06]} Be7 {[%emt 0:02:16]} 9. f3 {[%emt 0:12:03]} O-O {[%emt 0:01:50]} 10. Be3 {[%emt 0:04:00]} Bd7 {[%emt 0:18:48]} 11. g4 {[%emt 0:13:02]} b4 {[%emt 0:02:19]} 12. Nd1 {[%emt 0:00:55]} d5 {[%emt 0:02:27]} 13. g5 {[%emt 0:03:12]} Ne8 {[%emt 0:01:13]} 14. h4 {[%emt 0:06:55]} dxe4 {[%emt 0:05:48]} 15. fxe4 {[%emt 0:00:06]} Nc6 {[%emt 0:00:05]} 16. Nf3 {[%emt 0:05:39]} Nd6 {[%emt 0:04:56]} 17. Nf2 {[%emt 0:00:49]} a5 {[%emt 0:00:04]} 18. e5 {[%emt 0:07:18]} Nf5 {[%emt 0:00:29]} 19. Ne4 {[%emt 0:00:04]} Qc7 {[%emt 0:06:03]} 20. Bf4 {[%emt 0:03:00]} Rfc8 {[%emt 0:04:42]} 21. Rd1 {[%emt 0:03:40]} Nb8 {[%emt 0:16:39]} 22. g6 {[%emt 0:03:56]} fxg6 {[%emt 0:08:26]} 23. Nd6 {[%emt 0:21:31]} Rf8 {[%emt 0:02:28]} 24. Bg5 {[%emt 0:03:26]} Bxg5 {[%emt 0:09:18]} 25. Nxg5 {[%emt 0:00:20]} Ng3 {[%emt 0:00:23]} 26. Qg2 {[%emt 0:00:31]} Nxh1 {[%emt 0:00:26]} 27. Nxe6 {[%emt 0:03:23]} Bxe6 {[%emt 0:01:13]} 28. Bxe6+ {[%emt 0:00:01]} Kh8 {[%emt 0:00:06]} 29. Qxh1 {[%emt 0:01:03]} Nc6 {[%emt 0:02:19]} 30. Qd5 {[%emt 0:01:14]} h6 {[%emt 0:03:21]} 31. Nf7+ {[%emt 0:00:49]} Rxf7 {[%emt 0:00:16]} 32. Bxf7 {[%emt 0:00:01]} Qxe5+ {[%emt 0:02:59]} 33. Qxe5 {[%emt 0:00:03]} Nxe5 {[%emt 0:00:06]} 34. Bd5 {[%emt 0:00:26]} Rc8 {[%emt 0:01:51]} 35. Be4 {[%emt 0:00:21]} Re8 {[%emt 0:00:26]} 36. Kf2 {[%emt 0:01:13]} Kh7 {[%emt 0:02:54]} 37. Rd4 {[%emt 0:00:27]} Ng4+ {[%emt 0:00:33]} 38. Kf3 {[%emt 0:00:34]} Nf6 {[%emt 0:00:04]} 39. Bd3 {[%emt 0:00:16]} Re1 {[%emt 0:01:11]} 40. Rd6 {[%emt 0:00:00]} h5 {[%emt 0:00:00]} 41. Ra6 {[%emt 0:05:35]} Re5 {[%emt 0:01:29]} 42. c4 {[%emt 0:00:19]} bxc3 {[%emt 0:02:21]} 43. bxc3 {[%emt 0:00:01]} Kh6 {[%emt 0:06:11]} 44. Ra8 {[%emt 0:00:13]} Kh7 {[%emt 0:00:03]} 45. c4 {[%emt 0:00:21]} Ng4 {[%emt 0:00:53]} 46. Kf4 {[%emt 0:07:52]} Rc5 {[%emt 0:03:23]} 47. Ra6 {[%emt 0:08:18]} Nf6 {[%emt 0:02:07]} 48. Ke3 {[%emt 0:03:09]} Kh6 {[%emt 0:06:45]} 49. Kd4 {[%emt 0:00:13]} Rc8 {[%emt 0:00:05]} 50. Rxa5 {[%emt 0:00:23]} Rd8+ {[%emt 0:00:37]} 51. Kc3 {[%emt 0:00:12]} Ng4 {[%emt 0:00:12]} 52. Rg5 {[%emt 0:01:19]} Rd6 {[%emt 0:00:05]} 53. c5 {[%emt 0:00:17]} Rf6 {[%emt 0:00:02]} 54. Kd4 {[%emt 0:02:14]} Rf4+ {[%emt 0:00:30]} 55. Be4 {[%emt 0:00:59]} Rf6 {[%emt 0:00:14]} 56. c6 {[%emt 0:00:47]} Nf2 {[%emt 0:00:15]} 57. Rxg6+ {[%emt 0:00:19]} 1-0

[Event "4th Memorial Warakomska-A 2020"]
[Site "Suwalki"]
[Date "2020.08.07"]
[Round "2.10"]
[White "Backiel, Hubert"]
[Black "Leskiewicz, Ignacy"]
[Result "1-0"]
[ECO "B51"]
[WhiteElo "1943"]
[BlackElo "2190"]
[Annotator "ChessBase"]
[PlyCount "133"]
[EventDate "2020.08.06"]
[EventType "swiss"]
[EventCountry "POL"]
[SourceTitle "playchess.com"]
[Source "ChessBase"]
[SourceQuality "1"]
[TimeControl "40/5400+30:1800+30"]

1. e4 {[%emt 0:00:00]} c5 {[%emt 0:00:00]} 2. Nf3 {[%emt 0:00:00]} d6 {[%emt 0:00:00]} 3. Bb5+ {[%emt 0:00:00]} Nc6 {[%emt 0:00:08]} 4. O-O {[%emt 0:00:19]} e5 {[%emt 0:25:30]} 5. c3 {[%emt 0:12:20]} Bg4 {[%emt 0:09:04]} 6. d4 {[%emt 0:08:03]} Qb6 {[%emt 0:14:20]} 7. Bxc6+ {[%emt 0:07:52]} Qxc6 {[%emt 0:00:02]} 8. Nxe5 {[%emt 0:00:13]} dxe5 {[%emt 0:09:48]} 9. Qxg4 {[%emt 0:00:16]} Nf6 {[%emt 0:00:01]} 10. Qf5 {[%emt 0:25:08]} exd4 {[%emt 0:01:44]} 11. cxd4 {[%emt 0:03:32]} cxd4 {[%emt 0:01:21]} 12. Bg5 {[%emt 0:01:24]} Nd7 {[%emt 0:13:26]} 13. Nd2 {[%emt 0:04:04]} g6 {[%emt 0:01:35]} 14. Qd5 {[%emt 0:02:17]} Bg7 {[%emt 0:04:39]} 15. Rac1 {[%emt 0:00:43]} Qxd5 {[%emt 0:00:30]} 16. exd5 {[%emt 0:00:03]} O-O {[%emt 0:01:19]} 17. Rc7 {[%emt 0:01:05]} Nf6 {[%emt 0:02:02]} 18. d6 {[%emt 0:01:07]} Ne8 {[%emt 0:08:41]} 19. Rd7 {[%emt 0:08:06]} f6 {[%emt 0:00:01]} 20. Bf4 {[%emt 0:00:22]} g5 {[%emt 0:00:18]} 21. Bg3 {[%emt 0:00:01]} f5 {[%emt 0:00:16]} 22. f4 {[%emt 0:00:25]} Nf6 {[%emt 0:02:55]} 23. Rxb7 {[%emt 0:00:33]} Ne4 {[%emt 0:00:01]} 24. Nxe4 {[%emt 0:01:20]} fxe4 {[%emt 0:00:02]} 25. fxg5 {[%emt 0:00:54]} e3 {[%emt 0:03:43]} 26. Rxg7+ {[%emt 0:12:50]} Kxg7 {[%emt 0:00:02]} 27. Be5+ {[%emt 0:00:01]} Kg6 {[%emt 0:00:13]} 28. Bxd4 {[%emt 0:00:13]} e2 {[%emt 0:01:20]} 29. Re1 {[%emt 0:00:33]} Rae8 30. Bf6 {[%emt 0:00:54]} Rf7 {[%emt 0:01:22]} 31. Kf2 {[%emt 0:00:35]} Re6 {[%emt 0:00:32]} 32. Rxe2 {[%emt 0:03:47]} Rxd6 {[%emt 0:00:01]} 33. g4 {[%emt 0:00:01]} h6 {[%emt 0:00:18]} 34. h4 {[%emt 0:01:23]} hxg5 {[%emt 0:00:01]} 35. hxg5 {[%emt 0:00:01]} Rh7 {[%emt 0:00:01]} 36. Kg2 {[%emt 0:02:20]} Rdd7 {[%emt 0:01:18]} 37. Re6 {[%emt 0:02:52]} Kf7 {[%emt 0:00:08]} 38. Rc6 {[%emt 0:00:24]} Rd2+ {[%emt 0:01:04]} 39. Kg3 {[%emt 0:00:02]} Rd3+ {[%emt 0:00:10]} 40. Kf4 {[%emt 0:00:00]} Rh1 {[%emt 0:00:00]} 41. Rc7+ {[%emt 0:00:48]} Ke6 {[%emt 0:01:53]} 42. Re7+ {[%emt 0:02:09]} Kd6 {[%emt 0:00:15]} 43. Kf5 {[%emt 0:01:09]} Rg1 {[%emt 0:02:52]} 44. Rxa7 {[%emt 0:03:31]} Rf3+ {[%emt 0:00:57]} 45. Kg6 {[%emt 0:01:06]} Rxg4 {[%emt 0:00:14]} 46. Ra5 {[%emt 0:03:25]} Re4 {[%emt 0:00:55]} 47. Kf7 {[%emt 0:05:29]} Re7+ {[%emt 0:00:11]} 48. Kg6 {[%emt 0:01:21]} Rb7 {[%emt 0:01:33]} 49. a3 {[%emt 0:02:28]} Rb6 {[%emt 0:00:48]} 50. Ra7 {[%emt 0:01:39]} Rb5 {[%emt 0:01:20]} 51. Kg7 {[%emt 0:02:40]} Ke6 {[%emt 0:00:27]} 52. Re7+ {[%emt 0:02:44]} Kd6 {[%emt 0:00:42]} 53. Ra7 {[%emt 0:03:11]} Ke6 {[%emt 0:00:34]} 54. Kg6 {[%emt 0:01:45]} Rb6 {[%emt 0:00:17]} 55. a4 {[%emt 0:01:24]} Rb8 {[%emt 0:01:22]} 56. a5 {[%emt 0:01:38]} Kd5 {[%emt 0:01:06]} 57. a6 {[%emt 0:00:25]} Kc6 {[%emt 0:00:19]} 58. Re7 {[%emt 0:01:37]} Kb6 {[%emt 0:00:52]} 59. a7 {[%emt 0:00:17]} Ra8 {[%emt 0:01:29]} 60. Kf7 {[%emt 0:02:13]} Rf4 {[%emt 0:00:54]} 61. g6 {[%emt 0:00:19]} Rc4 {[%emt 0:00:01]} 62. g7 {[%emt 0:00:47]} Rcc8 {[%emt 0:00:02]} 63. Be5 {[%emt 0:00:24]} Rc2 {[%emt 0:00:44]} 64. Bb8 {[%emt 0:00:38]} Rf2+ {[%emt 0:00:04]} 65. Ke8 {[%emt 0:00:10]} Rg2 {[%emt 0:00:11]} 66. Kf8 {[%emt 0:00:09]} Rf2+ {[%emt 0:00:18]} 67. Rf7 {[%emt 0:00:07]} 1-0

[Event "4th Memorial Warakomska-A 2020"]
[Site "Suwalki"]
[Date "2020.08.07"]
[Round "2.11"]
[White "Deruelle Sala, Albert"]
[Black "Jurkiewicz, Krzysztof"]
[Result "1-0"]
[ECO "E92"]
[WhiteElo "2078"]
[BlackElo "2275"]
[Annotator "ChessBase"]
[PlyCount "69"]
[EventDate "2020.08.06"]
[EventType "swiss"]
[EventCountry "POL"]
[SourceTitle "playchess.com"]
[Source "ChessBase"]
[SourceQuality "1"]
[TimeControl "40/5400+30:1800+30"]

1. d4 {[%emt 0:01:45]} Nf6 {[%emt 0:00:00]} 2. c4 {[%emt 0:00:30]} g6 {[%emt 0:00:00]} 3. Nc3 {[%emt 0:00:09]} Bg7 {[%emt 0:00:00]} 4. e4 {[%emt 0:00:10]} d6 {[%emt 0:00:00]} 5. Nf3 {[%emt 0:00:15]} O-O {[%emt 0:00:03]} 6. Be2 {[%emt 0:00:08]} e5 {[%emt 0:00:12]} 7. d5 {[%emt 0:00:38]} Nh5 {[%emt 0:00:44]} 8. g3 {[%emt 0:01:52]} Na6 {[%emt 0:00:45]} 9. Nd2 {[%emt 0:03:38]} Nf6 {[%emt 0:02:13]} 10. h4 {[%emt 0:00:45]} h5 {[%emt 0:02:11]} 11. Nb3 {[%emt 0:00:47]} Nh7 {[%emt 0:11:36]} 12. g4 {[%emt 0:01:21]} Bxg4 {[%emt 0:02:43]} 13. Bxg4 {[%emt 0:00:38]} hxg4 {[%emt 0:00:06]} 14. h5 {[%emt 0:00:33]} Qd7 {[%emt 0:06:40]} 15. Be3 {[%emt 0:02:54]} gxh5 {[%emt 0:03:30]} 16. Rxh5 {[%emt 0:01:34]} f5 {[%emt 0:00:30]} 17. exf5 {[%emt 0:00:56]} Nf6 {[%emt 0:08:12]} 18. Rg5 {[%emt 0:05:19]} Kf7 {[%emt 0:05:48]} 19. Qe2 {[%emt 0:17:50]} Rh8 {[%emt 0:16:16]} 20. Qf1 {[%emt 0:10:42]} Rh2 {[%emt 0:14:12]} 21. O-O-O {[%emt 0:02:35]} Rah8 {[%emt 0:01:22]} 22. Nd2 {[%emt 0:01:09]} Nc5 {[%emt 0:05:02]} 23. b4 {[%emt 0:06:46]} Bh6 {[%emt 0:04:02]} 24. bxc5 {[%emt 0:01:00]} Bxg5 {[%emt 0:00:02]} 25. Bxg5 {[%emt 0:00:28]} Qxf5 {[%emt 0:00:47]} 26. Bxf6 {[%emt 0:00:15]} Qxf6 {[%emt 0:01:39]} 27. Nce4 {[%emt 0:00:13]} Qg6 {[%emt 0:03:32]} 28. cxd6 {[%emt 0:00:51]} cxd6 {[%emt 0:00:25]} 29. c5 {[%emt 0:00:32]} dxc5 {[%emt 0:00:58]} 30. Qb5 {[%emt 0:00:52]} Qb6 {[%emt 0:05:11]} 31. Qd7+ {[%emt 0:00:54]} Kf8 {[%emt 0:00:17]} 32. Nd6 {[%emt 0:01:57]} R2h7 {[%emt 0:00:30]} 33. Qe8+ {[%emt 0:00:41]} Kg7 {[%emt 0:00:02]} 34. Qf7+ {[%emt 0:00:20]} Kh6 {[%emt 0:00:03]} 35. Rh1+ {[%emt 0:00:14]} 1-0

[Event "4th Memorial Warakomska-A 2020"]
[Site "Suwalki"]
[Date "2020.08.07"]
[Round "2.12"]
[White "Bugajski, Robert"]
[Black "Strzelecki, Jerzy"]
[Result "1-0"]
[ECO "A49"]
[WhiteElo "2081"]
[BlackElo "1977"]
[Annotator "ChessBase"]
[PlyCount "89"]
[EventDate "2020.08.06"]
[EventType "swiss"]
[EventCountry "POL"]
[SourceTitle "playchess.com"]
[Source "ChessBase"]
[SourceQuality "1"]
[TimeControl "40/5400+30:1800+30"]

1. d4 {[%emt 0:00:00]} Nf6 {[%emt 0:03:34]} 2. Nf3 {[%emt 0:00:06]} g6 {[%emt 0:00:33]} 3. g3 {[%emt 0:00:25]} d5 {[%emt 0:00:57]} 4. Bg2 {[%emt 0:00:16]} Bg7 {[%emt 0:00:05]} 5. O-O {[%emt 0:00:15]} O-O {[%emt 0:00:08]} 6. c4 {[%emt 0:00:16]} dxc4 {[%emt 0:00:23]} 7. Na3 {[%emt 0:02:55]} c3 {[%emt 0:00:09]} 8. bxc3 {[%emt 0:00:16]} c5 {[%emt 0:00:18]} 9. Bb2 {[%emt 0:12:17]} Nc6 {[%emt 0:04:55]} 10. Re1 {[%emt 0:06:18]} Qb6 {[%emt 0:23:18]} 11. Nc4 {[%emt 0:07:12]} Qa6 {[%emt 0:02:05]} 12. Ncd2 {[%emt 0:03:21]} e5 {[%emt 0:03:38]} 13. e3 {[%emt 0:11:50]} cxd4 {[%emt 0:03:38]} 14. cxd4 {[%emt 0:05:10]} exd4 {[%emt 0:00:25]} 15. Nxd4 {[%emt 0:00:52]} Nxd4 {[%emt 0:02:34]} 16. Bxd4 {[%emt 0:00:17]} Be6 {[%emt 0:04:02]} 17. Nb3 {[%emt 0:02:16]} Nd7 {[%emt 0:07:31]} 18. Bxg7 {[%emt 0:03:38]} Kxg7 {[%emt 0:00:22]} 19. Nd4 {[%emt 0:00:46]} Nc5 {[%emt 0:02:07]} 20. Nxe6+ {[%emt 0:07:23]} Nxe6 {[%emt 0:00:27]} 21. Qd5 {[%emt 0:01:26]} Rab8 {[%emt 0:00:29]} 22. a4 {[%emt 0:06:00]} Rfd8 {[%emt 0:01:35]} 23. Qe5+ {[%emt 0:00:50]} f6 {[%emt 0:01:37]} 24. Qb5 {[%emt 0:01:33]} Qd6 {[%emt 0:02:45]} 25. a5 {[%emt 0:01:58]} Rd7 {[%emt 0:02:59]} 26. Rec1 {[%emt 0:01:49]} Rc7 {[%emt 0:10:03]} 27. Rd1 {[%emt 0:00:55]} Qe7 {[%emt 0:00:49]} 28. Rab1 {[%emt 0:01:03]} Nc5 {[%emt 0:02:35]} 29. Rbc1 {[%emt 0:05:08]} b6 {[%emt 0:04:29]} 30. h4 {[%emt 0:02:04]} a6 {[%emt 0:02:14]} 31. Qb4 {[%emt 0:04:01]} b5 {[%emt 0:00:11]} 32. Rd5 {[%emt 0:01:25]} Rbc8 {[%emt 0:00:06]} 33. Rcd1 {[%emt 0:01:34]} Qf8 {[%emt 0:01:48]} 34. h5 {[%emt 0:03:14]} Re8 {[%emt 0:03:02]} 35. hxg6 {[%emt 0:01:05]} hxg6 {[%emt 0:00:04]} 36. Rd6 {[%emt 0:01:36]} Re6 {[%emt 0:01:14]} 37. Rd8 {[%emt 0:01:33]} Re8 {[%emt 0:00:23]} 38. R8d6 {[%emt 0:00:41]} Re6 {[%emt 0:00:10]} 39. Rd8 {[%emt 0:01:35]} Re8 {[%emt 0:00:13]} 40. R8d5 {[%emt 0:00:00]} Ne6 {[%emt 0:00:00]} 41. Qg4 {[%emt 0:09:11]} Qe7 {[%emt 0:13:50]} 42. Be4 {[%emt 0:03:14]} Nf8 {[%emt 0:00:48]} 43. Bxg6 {[%emt 0:02:02]} Nxg6 {[%emt 0:00:13]} 44. Rd7 {[%emt 0:00:20]} Rc4 {[%emt 0:01:04]} 45. Qe6 1-0

[Event "4th Memorial Warakomska-A 2020"]
[Site "Suwalki"]
[Date "2020.08.07"]
[Round "2.14"]
[White "Malaczek, Mateusz"]
[Black "Rosol, Alexander"]
[Result "1/2-1/2"]
[ECO "A15"]
[WhiteElo "2036"]
[BlackElo "1933"]
[Annotator "ChessBase"]
[PlyCount "101"]
[EventDate "2020.08.06"]
[EventType "swiss"]
[EventCountry "POL"]
[SourceTitle "playchess.com"]
[Source "ChessBase"]
[SourceQuality "1"]
[TimeControl "40/5400+30:1800+30"]

1. c4 {[%emt 0:00:00]} Nf6 {[%emt 0:00:14]} 2. g3 {[%emt 0:00:00]} g6 {[%emt 0:00:15]} 3. Bg2 {[%emt 0:00:00]} Bg7 {[%emt 0:00:09]} 4. Nc3 {[%emt 0:00:05]} d6 {[%emt 0:00:28]} 5. d3 {[%emt 0:00:11]} O-O {[%emt 0:00:17]} 6. e4 {[%emt 0:02:10]} c6 {[%emt 0:00:38]} 7. Nge2 {[%emt 0:00:18]} e5 {[%emt 0:01:30]} 8. O-O {[%emt 0:00:12]} a5 {[%emt 0:12:54]} 9. h3 {[%emt 0:05:36]} Be6 {[%emt 0:12:42]} 10. f4 {[%emt 0:06:26]} Qd7 {[%emt 0:00:46]} 11. Kh2 {[%emt 0:03:58]} Ne8 {[%emt 0:01:29]} 12. Be3 {[%emt 0:11:50]} f6 {[%emt 0:14:20]} 13. b3 {[%emt 0:06:24]} c5 {[%emt 0:10:07]} 14. Nd5 {[%emt 0:01:20]} Bxd5 {[%emt 0:01:14]} 15. exd5 {[%emt 0:00:28]} f5 {[%emt 0:01:51]} 16. fxe5 {[%emt 0:05:42]} Bxe5 {[%emt 0:00:59]} 17. d4 {[%emt 0:00:29]} cxd4 {[%emt 0:00:27]} 18. Nxd4 {[%emt 0:07:19]} Nc7 {[%emt 0:06:36]} 19. Qd2 {[%emt 0:08:12]} Qe7 {[%emt 0:04:25]} 20. Bg5 {[%emt 0:06:54]} Qf7 {[%emt 0:06:52]} 21. Rae1 {[%emt 0:01:40]} Nd7 {[%emt 0:05:59]} 22. Ne6 {[%emt 0:13:23]} Rfc8 {[%emt 0:00:10]} 23. Bf4 {[%emt 0:04:47]} Ne8 {[%emt 0:06:09]} 24. Bxe5 {[%emt 0:02:46]} Nxe5 {[%emt 0:00:09]} 25. g4 {[%emt 0:01:41]} Ng7 {[%emt 0:05:25]} 26. c5 {[%emt 0:04:44]} Qe7 {[%emt 0:04:00]} 27. Nxg7 {[%emt 0:00:23]} Kxg7 {[%emt 0:01:30]} 28. cxd6 {[%emt 0:03:29]} Qxd6 {[%emt 0:00:02]} 29. Qd4 {[%emt 0:00:16]} Re8 {[%emt 0:00:26]} 30. gxf5 {[%emt 0:00:11]} g5 {[%emt 0:01:24]} 31. Kh1 {[%emt 0:00:43]} Kf6 {[%emt 0:00:13]} 32. Rf3 {[%emt 0:02:29]} Qb4 {[%emt 0:00:50]} 33. Qa1 {[%emt 0:01:38]} Qxe1+ {[%emt 0:01:17]} 34. Qxe1 {[%emt 0:00:12]} Nxf3 {[%emt 0:00:04]} 35. Qc3+ {[%emt 0:00:42]} Ne5 {[%emt 0:00:06]} 36. d6 {[%emt 0:00:36]} Rad8 {[%emt 0:01:16]} 37. Qd4 {[%emt 0:00:29]} Rd7 {[%emt 0:00:37]} 38. Qc5 {[%emt 0:00:39]} Red8 {[%emt 0:00:32]} 39. Qxa5 {[%emt 0:00:14]} Rxd6 {[%emt 0:00:16]} 40. Bxb7 {[%emt 0:00:00]} Rd2 {[%emt 0:00:00]} 41. Qa6+ {[%emt 0:07:05]} R2d6 {[%emt 0:03:24]} 42. Qa5 {[%emt 0:02:01]} h5 {[%emt 0:02:22]} 43. Bg2 {[%emt 0:02:12]} g4 {[%emt 0:05:12]} 44. Kh2 {[%emt 0:02:06]} Rd2 {[%emt 0:04:05]} 45. Qa6+ {[%emt 0:04:50]} Kg5 {[%emt 0:01:56]} 46. h4+ {[%emt 0:01:08]} Kxf5 {[%emt 0:01:07]} 47. Qh6 {[%emt 0:00:19]} Nf3+ {[%emt 0:03:07]} 48. Kg3 {[%emt 0:00:18]} R8d3 {[%emt 0:01:39]} 49. Qxh5+ {[%emt 0:01:20]} Kf6 {[%emt 0:03:12]} 50. Qh6+ {[%emt 0:02:19]} Ke5 {[%emt 0:00:22]} 51. Qf4+ 1/2-1/2

[Event "4th Memorial Warakomska-A 2020"]
[Site "Suwalki"]
[Date "2020.08.07"]
[Round "2.15"]
[White "Budzisz, Adrian"]
[Black "Chojnowski, Marcin"]
[Result "1-0"]
[ECO "B51"]
[WhiteElo "1823"]
[BlackElo "2035"]
[Annotator "ChessBase"]
[PlyCount "74"]
[EventDate "2020.08.06"]
[EventType "swiss"]
[EventCountry "POL"]
[SourceTitle "playchess.com"]
[Source "ChessBase"]
[SourceQuality "1"]
[TimeControl "40/5400+30:1800+30"]

1. e4 {[%emt 0:00:00]} c5 {[%emt 0:00:00]} 2. Nf3 {[%emt 0:00:00]} d6 {[%emt 0:00:00]} 3. Bb5+ {[%emt 0:00:00]} Nd7 {[%emt 0:00:03]} 4. Ba4 {[%emt 0:00:00]} a6 {[%emt 0:00:45]} 5. c4 {[%emt 0:00:08]} Ngf6 {[%emt 0:00:39]} 6. O-O {[%emt 0:00:07]} e6 {[%emt 0:00:35]} 7. Re1 {[%emt 0:00:26]} Be7 {[%emt 0:00:41]} 8. Nc3 {[%emt 0:01:09]} O-O {[%emt 0:00:20]} 9. Bc2 {[%emt 0:01:32]} e5 {[%emt 0:03:12]} 10. d3 {[%emt 0:02:36]} Ne8 {[%emt 0:05:04]} 11. Nd2 {[%emt 0:03:49]} f5 {[%emt 0:00:48]} 12. exf5 {[%emt 0:00:23]} Nb8 {[%emt 0:07:25]} 13. g4 {[%emt 0:04:56]} Nc6 {[%emt 0:01:25]} 14. Nd5 {[%emt 0:07:15]} Nf6 {[%emt 0:06:51]} 15. Nxf6+ {[%emt 0:02:40]} Bxf6 {[%emt 0:00:33]} 16. Ne4 {[%emt 0:00:38]} Nd4 {[%emt 0:05:11]} 17. h3 {[%emt 0:02:40]} Kh8 {[%emt 0:03:39]} 18. Be3 {[%emt 0:01:12]} b6 {[%emt 0:02:48]} 19. Bxd4 {[%emt 0:12:45]} cxd4 {[%emt 0:00:26]} 20. b4 {[%emt 0:01:10]} Bg5 {[%emt 0:02:56]} 21. Bb3 {[%emt 0:17:54]} Bf4 {[%emt 0:01:26]} 22. Kg2 {[%emt 0:01:03]} Bb7 {[%emt 0:05:32]} 23. Re2 {[%emt 0:02:48]} Qh4 {[%emt 0:03:43]} 24. Qe1 {[%emt 0:01:30]} Qf6 {[%emt 0:04:47]} 25. f3 {[%emt 0:00:55]} Qh6 26. h4 {[%emt 0:03:14]} Rac8 {[%emt 0:11:29]} 27. Qf2 {[%emt 0:05:19]} b5 {[%emt 0:05:26]} 28. cxb5 {[%emt 0:02:37]} axb5 {[%emt 0:02:07]} 29. g5 {[%emt 0:06:39]} Qh5 {[%emt 0:02:23]} 30. Nxd6 {[%emt 0:00:25]} Be3 {[%emt 0:01:29]} 31. Qg3 {[%emt 0:01:00]} Ba8 {[%emt 0:01:17]} 32. Nxc8 {[%emt 0:05:46]} Rxc8 {[%emt 0:00:07]} 33. Rf1 {[%emt 0:00:14]} Bf4 34. Qh3 Rc3 35. Rc2 Qe8 36. Rxc3 dxc3 37. Rf2 Qd7 1-0

[Event "4th Memorial Warakomska-A 2020"]
[Site "Suwalki"]
[Date "2020.08.07"]
[Round "2.16"]
[White "Krasiewicz, Robert"]
[Black "Marczukiewicz, Jerzy"]
[Result "1-0"]
[ECO "D45"]
[WhiteElo "2033"]
[BlackElo "1912"]
[Annotator "ChessBase"]
[PlyCount "77"]
[EventDate "2020.08.06"]
[EventType "swiss"]
[EventCountry "POL"]
[SourceTitle "playchess.com"]
[Source "ChessBase"]
[SourceQuality "1"]
[TimeControl "40/5400+30:1800+30"]

1. d4 {[%emt 0:00:00]} d5 {[%emt 0:00:00]} 2. Nf3 {[%emt 0:00:00]} Nf6 {[%emt 0:00:04]} 3. c4 {[%emt 0:00:00]} c6 {[%emt 0:00:20]} 4. Qc2 {[%emt 0:00:06]} e6 {[%emt 0:02:40]} 5. e3 {[%emt 0:00:38]} Nbd7 {[%emt 0:00:32]} 6. Nc3 {[%emt 0:00:02]} b6 {[%emt 0:00:52]} 7. b3 {[%emt 0:01:36]} Bb7 {[%emt 0:00:25]} 8. Bd3 {[%emt 0:00:15]} Be7 {[%emt 0:07:34]} 9. O-O {[%emt 0:00:15]} O-O {[%emt 0:00:22]} 10. Bb2 {[%emt 0:00:18]} h6 {[%emt 0:00:31]} 11. Rad1 {[%emt 0:02:26]} Qc7 {[%emt 0:00:56]} 12. Qe2 {[%emt 0:03:58]} Rad8 {[%emt 0:01:22]} 13. Rfe1 {[%emt 0:01:40]} Rfe8 {[%emt 0:00:29]} 14. Ne5 {[%emt 0:05:41]} dxc4 {[%emt 0:00:27]} 15. Nxc4 {[%emt 0:02:21]} c5 {[%emt 0:04:20]} 16. e4 {[%emt 0:03:34]} cxd4 {[%emt 0:04:08]} 17. Nb5 {[%emt 0:00:22]} Qb8 {[%emt 0:08:19]} 18. e5 {[%emt 0:04:23]} Nd5 {[%emt 0:01:05]} 19. Qe4 {[%emt 0:01:22]} Nf8 {[%emt 0:07:18]} 20. Qxd4 {[%emt 0:05:55]} Bc5 {[%emt 0:08:54]} 21. Qg4 {[%emt 0:02:41]} Nb4 {[%emt 0:05:56]} 22. Bb1 {[%emt 0:00:58]} Rxd1 {[%emt 0:07:18]} 23. Rxd1 {[%emt 0:00:49]} Bd5 {[%emt 0:02:07]} 24. Nbd6 {[%emt 0:03:02]} Re7 {[%emt 0:05:55]} 25. a3 {[%emt 0:01:11]} Nc6 26. b4 {[%emt 0:02:03]} b5 {[%emt 0:11:46]} 27. Ne3 {[%emt 0:37:59]} Bxd6 {[%emt 0:08:55]} 28. Nxd5 {[%emt 0:02:05]} exd5 {[%emt 0:04:03]} 29. exd6 {[%emt 0:00:12]} f5 {[%emt 0:00:54]} 30. Qg3 {[%emt 0:02:10]} Rf7 {[%emt 0:03:35]} 31. Rxd5 {[%emt 0:01:01]} f4 {[%emt 0:00:29]} 32. Qc3 {[%emt 0:00:59]} Qe8 {[%emt 0:01:02]} 33. Rd1 {[%emt 0:02:52]} Nb8 {[%emt 0:00:44]} 34. Ba2 {[%emt 0:00:11]} Ne6 {[%emt 0:01:55]} 35. Qh3 {[%emt 0:02:39]} Ng5 {[%emt 0:00:44]} 36. Bxf7+ {[%emt 0:01:24]} Qxf7 {[%emt 0:01:06]} 37. Qc8+ {[%emt 0:00:09]} Kh7 {[%emt 0:00:09]} 38. d7 {[%emt 0:01:31]} Nxd7 {[%emt 0:00:35]} 39. Qxd7 {[%emt 0:00:15]} 1-0